bitfinex/quotes_BTCUSD_20240905
["timestamp","ask_amount","ask_price","bid_price","bid_amount"]
[1725548668978,0.001,56401.0,56400.0,1.81694]
[1725548669201,0.000816,56419.0,56418.0,0.177248]
[1725548669431,0.000816,56419.0,56418.0,0.909744]
[1725548669662,0.000816,56419.0,56418.0,0.378]
[1725548669871,0.000816,56419.0,56418.0,0.377]
[1725548670357,0.000816,56419.0,56406.0,0.1715]
[1725548670358,0.000816,56419.0,56406.0,0.1615]
[1725548670574,0.0012,56418.0,56407.0,0.1807]
[1725548670794,0.204832,56418.0,56407.0,0.1807]
[1725548671003,0.371133,56417.0,56408.0,0.00354542]
[1725548671231,0.000816,56419.0,56407.0,0.1807]
[1725548671232,0.260036,56416.0,56407.0,0.1807]
[1725548671451,0.177282,56407.0,56406.0,0.1615]
[1725548671708,1.20519,56407.0,56406.0,0.1615]
[1725548671913,1.559755,56407.0,56406.0,0.1615]
[1725548672378,1.043153,56407.0,56406.0,0.1615]
[1725548672604,1.5020333,56407.0,56406.0,0.1615]
[1725548672842,0.531904,56401.0,56396.0,0.2065]
[1725548673059,3.802675,56401.0,56400.0,1.0126]
[1725548673277,1.039537,56401.0,56400.0,1.0126]
[1725548673926,0.177301,56401.0,56400.0,1.0126]
[1725548674161,0.0012,56411.0,56401.0,0.2065]
[1725548674386,0.001,56407.0,56406.0,0.006]
[1725548675070,0.001,56407.0,56406.0,0.744358]
[1725548675285,0.000816,56419.0,56413.0,0.354524]
[1725548675504,0.000816,56419.0,56416.0,0.177254]
[1725548675722,0.000816,56419.0,56418.0,0.177248]
[1725548675934,0.000816,56419.0,56418.0,0.530744]
[1725548676143,0.000816,56419.0,56418.0,0.56009243]
[1725548676365,0.000816,56419.0,56418.0,0.556548]
[1725548676798,0.000816,56419.0,56418.0,0.557548]
[1725548676799,0.001816,56419.0,56418.0,0.557548]
[1725548677222,0.000816,56419.0,56418.0,0.557548]
[1725548677440,9.000816,56419.0,56418.0,0.3803]
[1725548677648,9.001816,56419.0,56418.0,0.3913]
[1725548677864,9.179061,56419.0,56418.0,0.3913]
[1725548678076,9.533551,56419.0,56418.0,0.3913]
[1725548678729,9.001816,56419.0,56418.0,0.568548]
[1725548678966,8.819716,56419.0,56418.0,1.26654]
[1725548679191,8.638616,56419.0,56418.0,1.621036]
[1725548679405,8.639616,56419.0,56418.0,1.645036]
[1725548679864,8.639616,56419.0,56418.0,1.665036]
[1725548679865,8.232616,56419.0,56418.0,1.665036]
[1725548680073,8.231616,56419.0,56418.0,1.651036]
[1725548680292,8.232616,56419.0,56418.0,1.667036]
[1725548680508,8.052732,56419.0,56418.0,1.690036]
[1725548680729,6.90628642,56419.0,56418.0,1.881332]
[1725548680989,5.94410792,56419.0,56418.0,1.650232]
[1725548681209,5.94410792,56419.0,56418.0,1.750232]
[1725548681646,5.94410792,56419.0,56418.0,1.92574296]
[1725548681894,5.94410792,56419.0,56418.0,1.94240098]
[1725548682102,4.48365106,56419.0,56418.0,2.29688956]
[1725548682316,3.62627547,56419.0,56418.0,2.29688956]
[1725548682544,3.62727547,56419.0,56418.0,2.30488956]
[1725548682760,3.55637747,56419.0,56418.0,2.65938556]
[1725548682997,3.44903047,56419.0,56418.0,2.65138556]
[1725548683439,3.45003047,56419.0,56418.0,2.65938556]
[1725548683707,3.0578405,56419.0,56418.0,2.65938556]
[1725548683920,2.64981575,56419.0,56418.0,2.29688956]
[1725548684123,2.64981575,56419.0,56418.0,1.92574296]
[1725548684305,2.64981575,56419.0,56418.0,1.93374296]
[1725548684306,2.65081575,56419.0,56418.0,1.93374296]
[1725548684546,2.65081575,56419.0,56418.0,2.28823896]
[1725548684758,2.00768728,56419.0,56418.0,2.28823896]
[1725548684975,1.90134028,56419.0,56418.0,2.28823896]
[1725548685184,1.7064058,56419.0,56418.0,2.28823896]
[1725548685606,1.60886874,56419.0,56418.0,2.32616013]
[1725548685815,1.41262679,56419.0,56418.0,2.28823896]
[1725548686025,1.38862679,56419.0,56418.0,2.74073496]
[1725548686244,1.37564265,56419.0,56418.0,2.75738394]
[1725548686456,1.37564265,56419.0,56418.0,2.74938394]
[1725548686457,1.3009622,56419.0,56418.0,2.74938394]
[1725548686664,0.82683309,56419.0,56418.0,3.64362494]
[1725548686871,0.60141622,56419.0,56418.0,3.69157384]
[1725548687082,0.58466078,56419.0,56418.0,3.69157384]
[1725548687309,0.58366078,56419.0,56418.0,3.68357384]
[1725548687551,0.58466078,56419.0,56418.0,2.20852631]
[1725548687780,0.44265145,56419.0,56418.0,2.5645636]
[1725548688008,0.40720245,56419.0,56418.0,2.58121258]
[1725548688221,0.40720245,56419.0,56418.0,2.58121209]
[1725548688433,0.40720245,56419.0,56418.0,2.5645636]
[1725548688654,0.40720245,56419.0,56418.0,1.81074296]
[1725548688866,0.40620245,56419.0,56418.0,1.272736]
[1725548689092,0.40620245,56419.0,56418.0,0.89824]
[1725548689315,0.40620245,56419.0,56418.0,0.93224]
[1725548689527,0.40620245,56419.0,56418.0,0.90224]
[1725548689777,0.40620245,56419.0,56418.0,0.92024]
[1725548690213,0.40620245,56419.0,56418.0,0.014]
[1725548690432,0.40620245,56419.0,56408.0,0.0126]
[1725548690673,0.177249,56418.0,56408.0,0.0126]
[1725548690884,0.177249,56418.0,56410.0,0.17727]
[1725548691131,0.80552709,56419.0,56408.0,0.0126]
[1725548691372,1.33726209,56419.0,56418.0,4e-05]
[1725548691795,0.58344745,56419.0,56418.0,4e-05]
[1725548692252,0.40620245,56419.0,56418.0,4e-05]
[1725548692462,0.40720245,56419.0,56418.0,0.545784]
[1725548692669,0.40720245,56419.0,56418.0,1.264776]
[1725548692889,0.40720245,56419.0,56418.0,0.91028]
[1725548693363,0.93893745,56419.0,56418.0,0.01404]
[1725548693573,0.40720245,56419.0,56418.0,0.01404]
[1725548693784,0.40720245,56419.0,56418.0,0.191288]
[1725548694018,0.40720245,56419.0,56418.0,0.91028]
[1725548694267,0.40720245,56419.0,56418.0,0.92028]
[1725548694481,1.67662745,56419.0,56418.0,0.01404]
[1725548694901,2.03111745,56419.0,56418.0,0.01404]
[1725548695362,1.67662745,56419.0,56418.0,0.01404]
[1725548695577,1.67562745,56419.0,56418.0,4e-05]
[1725548695792,0.78940245,56419.0,56418.0,4e-05]
[1725548696046,0.79040245,56419.0,56418.0,0.01404]
[1725548696468,0.78940245,56419.0,56418.0,4e-05]
[1725548696684,0.78940245,56419.0,56418.0,0.01404]
[1725548696926,0.40720245,56419.0,56418.0,0.01404]
[1725548697138,0.40720245,56419.0,56418.0,0.191288]
[1725548697347,0.40720245,56419.0,56418.0,0.545784]
[1725548697570,0.40620245,56419.0,56418.0,4e-05]
[1725548698006,0.40620245,56419.0,56408.0,0.368787]
[1725548698007,0.40620245,56419.0,56409.0,0.354553]
[1725548698259,0.40620245,56419.0,56416.0,0.177252]
[1725548698466,0.40620245,56419.0,56408.0,0.014232]
[1725548698690,0.40620245,56419.0,56418.0,0.177248]
[1725548698943,0.40620245,56419.0,56418.0,0.014]
[1725548699157,0.40620245,56419.0,56418.0,0.545744]
[1725548699572,0.40620245,56419.0,56418.0,0.531744]
[1725548699784,0.40620245,56419.0,56418.0,0.88624]
[1725548700257,0.40620245,56419.0,56418.0,1.250736]
[1725548700495,0.40620245,56419.0,56418.0,1.615232]
[1725548700778,0.40620245,56419.0,56418.0,1.629232]
[1725548701026,0.40620245,56419.0,56418.0,1.274736]
[1725548701257,0.40620245,56419.0,56418.0,0.565744]
[1725548701506,0.40620245,56419.0,56418.0,1.9615716]
[1725548701716,0.40620245,56419.0,56418.0,2.3160676]
[1725548701997,0.40620245,56419.0,56409.0,0.0126]
[1725548701998,0.3868,56418.0,56409.0,0.0126]
[1725548702220,0.53182,56410.0,56409.0,0.0126]
[1725548702431,0.2138,56410.0,56409.0,0.0126]
[1725548703134,0.2138,56410.0,56409.0,0.189876]
[1725548703386,0.2138,56410.0,56409.0,0.0206]
[1725548703598,0.2138,56410.0,56409.0,0.197876]
[1725548703814,0.2138,56410.0,56409.0,0.0126]
[1725548704657,0.2138,56410.0,56409.0,0.189876]
[1725548704869,0.2138,56410.0,56409.0,0.0126]
[1725548705519,0.392073,56410.0,56409.0,0.0266]
[1725548705757,1.274167,56410.0,56409.0,0.0266]
[1725548705950,1.274167,56410.0,56406.0,0.001632]
[1725548705951,0.531847,56407.0,56406.0,0.001632]
[1725548706163,1.630843,56407.0,56406.0,0.001632]
[1725548706371,1.144212,56407.0,56406.0,0.001632]
[1725548706604,1.498777,56407.0,56406.0,0.001632]
[1725548707071,0.886507,56401.0,56400.0,1.0]
[1725548707297,0.886507,56401.0,56380.0,0.01]
[1725548707298,1.800842,56386.0,56380.0,0.01]
[1725548707504,1.655539,56386.0,56380.0,0.01]
[1725548708199,0.591448,56386.0,56381.0,0.01466717]
[1725548708500,0.591448,56386.0,56381.0,0.0111202]
[1725548708747,0.946145,56386.0,56381.0,0.0111202]
[1725548708982,0.4141,56386.0,56381.0,0.0111202]
[1725548709215,0.2616,56386.0,56385.0,0.178992]
[1725548709460,0.2616,56386.0,56385.0,0.533696]
[1725548709696,0.1677,56392.0,56387.0,0.353691]
[1725548709914,0.2524,56394.0,56388.0,0.35468]
[1725548710130,0.2524,56394.0,56392.0,0.177328]
[1725548710363,0.2524,56394.0,56393.0,0.177326]
[1725548710566,0.001,56386.0,56385.0,0.00264]
[1725548711207,0.001,56386.0,56385.0,0.179992]
[1725548711420,0.001,56386.0,56385.0,0.534696]
[1725548711643,0.001,56386.0,56385.0,0.8894]
[1725548712116,0.001,56386.0,56385.0,1.244104]
[1725548712326,0.1849,56399.0,56385.0,1.244104]
[1725548712327,0.17932179,56399.0,56398.0,0.177311]
[1725548712542,0.17932179,56399.0,56392.0,0.35466]
[1725548712765,0.001,56394.0,56393.0,0.177326]
[1725548713185,0.35663079,56399.0,56392.0,0.177329]
[1725548713430,0.35663079,56399.0,56389.0,0.354675]
[1725548713431,0.17932179,56399.0,56389.0,0.354675]
[1725548713658,0.17733,56392.0,56385.0,0.01264]
[1725548713870,0.177333,56392.0,56385.0,0.01264]
[1725548714083,0.57664264,56396.0,56385.0,0.00164]
[1725548714325,0.0012,56395.0,56385.0,0.00164]
[1725548714545,0.39932464,56404.0,56400.0,0.177302]
[1725548714745,0.354538,56412.0,56402.0,0.354592]
[1725548714967,0.39932464,56414.0,56409.0,0.177275]
[1725548715217,0.000816,56451.0,56411.0,0.17551096]
[1725548715480,0.28331484,56500.0,56411.0,0.17551096]
[1725548715481,0.15409967,56466.0,56465.0,1.269703]
[1725548715719,0.52732015,56501.0,56500.0,0.196991]
[1725548716006,0.52732015,56501.0,56500.0,1.31527964]
[1725548716240,0.52732015,56501.0,56500.0,1.76826164]
[1725548716241,0.000815,56501.0,56500.0,1.76826164]
[1725548716453,0.4658,56529.0,56500.0,1.76826164]
[1725548716454,0.02602797,56521.0,56516.0,0.176938]
[1725548716680,0.0012,56528.0,56506.0,0.01]
[1725548716912,0.45090946,56529.0,56511.0,0.353907]
[1725548717142,0.45090946,56529.0,56515.0,0.01]
[1725548717354,0.45090946,56529.0,56506.0,0.39932464]
[1725548717355,0.39932464,56531.0,56509.0,0.02]
[1725548717570,0.0012,56530.0,56509.0,0.02]
[1725548717801,0.0012,56530.0,56507.0,0.02]
[1725548718029,0.0012,56530.0,56504.0,0.01]
[1725548718030,0.001,56531.0,56522.0,0.353842]
[1725548718244,0.0012,56530.0,56508.0,0.01]
[1725548718477,0.0012,56531.0,56519.0,0.176929]
[1725548718689,0.0012,56531.0,56517.0,0.176935]
[1725548718903,0.0012,56531.0,56519.0,0.176929]
[1725548719121,0.0012,56531.0,56515.0,0.353888]
[1725548719122,0.000816,56528.0,56522.0,0.176921]
[1725548719360,0.000816,56528.0,56527.0,0.530719]
[1725548719809,0.000816,56528.0,56527.0,0.176906]
[1725548720010,0.000816,56528.0,56527.0,0.884532]
[1725548720217,0.000816,56528.0,56527.0,1.248345]
[1725548720428,0.000816,56528.0,56527.0,0.894532]
[1725548720644,0.000816,56528.0,56527.0,1.249345]
[1725548720848,0.000816,56528.0,56527.0,0.884532]
[1725548721302,0.000816,56528.0,56527.0,1.258345]
[1725548721517,0.000816,56528.0,56527.0,1.76225596]
[1725548721757,0.000816,56528.0,56527.0,2.11606896]
[1725548721991,0.000816,56528.0,56527.0,2.46988196]
[1725548722241,0.46302,56558.0,56527.0,2.46988196]
[1725548722242,0.46302,56558.0,56557.0,0.530437]
[1725548722446,0.00082,56558.0,56547.0,0.01]
[1725548722857,0.00082,56558.0,56557.0,0.176812]
[1725548723069,0.00082,56558.0,56557.0,0.530437]
[1725548723282,0.00082,56558.0,56557.0,0.884062]
[1725548723544,0.00082,56558.0,56557.0,1.247687]
[1725548723754,0.00082,56558.0,56557.0,1.450487]
[1725548723969,0.00082,56558.0,56557.0,1.451487]
[1725548724195,0.0111202,56578.0,56573.0,0.530287]
[1725548724405,0.0111202,56578.0,56573.0,1.281212]
[1725548724618,0.0111202,56578.0,56573.0,2.03406164]
[1725548724852,0.0111202,56578.0,56573.0,2.2095726]
[1725548725096,0.0111202,56578.0,56577.0,1.26725]
[1725548725320,0.000816,56595.0,56589.0,0.03]
[1725548725527,0.000816,56595.0,56594.0,1.66720364]
[1725548725732,0.000816,56595.0,56594.0,1.56638996]
[1725548726175,0.000816,56595.0,56594.0,1.65458996]
[1725548726402,0.000816,56595.0,56594.0,2.27538396]
[1725548726831,0.000816,56595.0,56594.0,1.722479]
[1725548727037,0.000816,56595.0,56594.0,1.634279]
[1725548727249,0.000816,56595.0,56594.0,1.270885]
[1725548727457,0.000816,56595.0,56594.0,2.2321146]
[1725548727667,0.000816,56595.0,56594.0,2.2331146]
[1725548728092,0.2784,56594.0,56568.0,0.008369]
[1725548728347,0.2784,56594.0,56569.0,0.00353466]
[1725548728624,0.52650515,56593.0,56580.0,0.018369]
[1725548728768,0.000816,56595.0,56580.0,0.185109]
[1725548728986,0.176707,56591.0,56580.0,0.008369]
[1725548729226,0.003447,56595.0,56574.0,0.353519]
[1725548729426,0.001631,56588.0,56568.0,0.176777]
[1725548729650,0.176743,56580.0,56568.0,0.008369]
[1725548729885,0.176743,56580.0,56528.0,0.05]
[1725548729886,0.268031,56610.0,56580.0,0.4371]
[1725548730105,0.52650515,56590.0,56584.0,0.008369]
[1725548730327,0.001,56596.0,56580.0,0.45529368]
[1725548730539,0.001,56596.0,56581.0,0.008369]
[1725548730540,0.176699,56594.0,56581.0,0.008369]
[1725548730759,0.001,56596.0,56582.0,0.353463]
[1725548730978,0.178447,56598.0,56586.0,0.17672]
[1725548731247,0.001761,56598.0,56580.0,0.01819368]
[1725548731458,0.4539,56593.0,56580.0,0.01819368]
[1725548731683,0.353437,56588.0,56580.0,0.01819368]
[1725548731901,0.39932464,56589.0,56580.0,0.01819368]
[1725548732115,0.177525,56590.0,56581.0,0.176734]
[1725548732326,0.01286349,56588.0,56580.0,0.01819368]
[1725548732566,0.001631,56586.0,56580.0,0.01819368]
[1725548732768,0.93116764,56581.0,56580.0,0.01819368]
[1725548732975,1.28464264,56581.0,56580.0,0.01819368]
[1725548733226,0.94145843,56581.0,56580.0,0.01819368]
[1725548733451,0.94145843,56581.0,56502.0,0.39932464]
[1725548733452,0.1808,56569.0,56552.0,0.362023]
[1725548733664,0.353582,56564.0,56549.0,0.353674]
[1725548733931,0.39932464,56564.0,56549.0,0.362043]
[1725548734148,0.176807,56559.0,56546.0,0.008369]
[1725548734356,0.176807,56559.0,56541.0,0.2037]
[1725548734357,0.290331,56561.0,56547.0,0.353687]
[1725548734565,0.290331,56561.0,56539.0,0.01]
[1725548734566,0.40955172,56558.0,56550.0,0.176833]
[1725548734794,0.40955172,56558.0,56557.0,0.530437]
[1725548734795,0.39932464,56558.0,56557.0,0.530437]
[1725548735032,0.5,56584.0,56557.0,0.530437]
[1725548735033,0.1827,56577.0,56557.0,0.01]
[1725548735241,0.1827,56577.0,56553.0,0.008369]
[1725548735242,0.52650515,56575.0,56559.0,0.01]
[1725548735464,0.1827,56577.0,56574.0,0.176758]
[1725548735884,0.1827,56577.0,56573.0,0.35705993]
[1725548736096,0.1827,56577.0,56574.0,0.176757]
[1725548736315,0.001631,56576.0,56574.0,0.176758]
[1725548736522,0.002831,56575.0,56558.0,0.353614]
[1725548736724,0.002831,56575.0,56559.0,0.0035353]
[1725548736725,0.40195564,56575.0,56559.0,0.0035353]
[1725548736937,0.002631,56575.0,56571.0,0.176768]
[1725548737143,0.001631,56575.0,56572.0,0.00353506]
[1725548737403,0.001631,56575.0,56574.0,0.176759]
[1725548737629,0.1827,56577.0,56559.0,0.195569]
[1725548737630,0.001631,56577.0,56559.0,0.195569]
[1725548737840,0.176763,56573.0,56564.0,0.353579]
[1725548738064,0.176769,56571.0,56558.0,0.353614]
[1725548738286,0.176769,56571.0,56557.0,0.01]
[1725548738287,0.176767,56572.0,56560.0,0.353604]
[1725548738562,0.001631,56575.0,56563.0,0.353583]
[1725548738767,0.001631,56575.0,56571.0,0.176767]
[1725548739008,0.001631,56575.0,56562.0,0.353589]
[1725548739234,0.001631,56575.0,56509.0,0.09032199]
[1725548739235,0.39932464,56570.0,56550.0,0.2811]
[1725548739462,0.001912,56571.0,56570.0,0.530316]
[1725548739463,0.000281,56571.0,56570.0,0.530316]
[1725548739673,0.000281,56571.0,56570.0,1.237404]
[1725548740113,0.000281,56571.0,56570.0,1.699317]
[1725548740354,0.000281,56571.0,56570.0,1.337404]
[1725548740580,0.000281,56571.0,56570.0,0.530316]
[1725548741038,0.000281,56571.0,56570.0,0.902229]
[1725548741270,0.000281,56571.0,56570.0,1.355773]
[1725548741509,0.000281,56571.0,56570.0,1.78809764]
[1725548741730,0.000281,56571.0,56570.0,2.3181526]
[1725548742224,0.000281,56571.0,56570.0,2.6048526]
[1725548742432,0.000281,56571.0,56570.0,2.9583966]
[1725548742673,0.000281,56571.0,56570.0,2.6048526]
[1725548742881,0.000281,56571.0,56570.0,2.9583966]
[1725548743335,0.000281,56571.0,56570.0,2.6048526]
[1725548743546,0.000281,56571.0,56570.0,2.6064806]
[1725548744768,0.000281,56571.0,56570.0,2.7984806]
[1725548745024,0.000815,56590.0,56589.0,1.236987]
[1725548745794,0.585515,56590.0,56589.0,1.236987]
[1725548746057,0.585515,56590.0,56589.0,2.32693664]
[1725548746310,0.59841179,56590.0,56589.0,2.004612]
[1725548746568,0.59841179,56590.0,56589.0,2.06888064]
[1725548746811,0.59841179,56590.0,56589.0,2.05888064]
[1725548747050,0.59841179,56590.0,56589.0,1.355356]
[1725548747526,0.59841179,56590.0,56589.0,1.76468064]
[1725548747784,0.59841179,56590.0,56589.0,2.3166166]
[1725548748022,0.59841179,56590.0,56589.0,1.80713864]
[1725548748252,0.59841179,56590.0,56589.0,1.82550764]
[1725548748747,0.59841179,56590.0,56589.0,1.81550764]
[1725548748995,0.59841179,56590.0,56589.0,1.84850764]
[1725548749244,0.59841179,56590.0,56589.0,1.84950764]
[1725548749474,0.59841179,56590.0,56589.0,2.3884436]
[1725548749743,0.59841179,56590.0,56589.0,2.5834436]
[1725548750239,0.585515,56590.0,56589.0,2.5834436]
[1725548750708,0.59595326,56590.0,56589.0,1.81713864]
[1725548750969,0.59595326,56590.0,56589.0,0.600964]
[1725548751199,0.59595326,56590.0,56589.0,0.630137]
[1725548751468,0.59595326,56590.0,56589.0,1.75468064]
[1725548751742,0.59595326,56590.0,56589.0,2.09973664]
[1725548751994,0.59595326,56590.0,56589.0,2.10810564]
[1725548752252,0.59595326,56590.0,56589.0,2.17893364]
[1725548752488,0.59595326,56590.0,56589.0,1.82550864]
[1725548752751,0.59595326,56590.0,56589.0,1.416184]
[1725548753027,0.59595326,56590.0,56582.0,0.02328323]
[1725548753028,1.08348426,56590.0,56588.0,0.176714]
[1725548753312,0.59595326,56590.0,56589.0,0.883562]
[1725548753549,0.59595326,56590.0,56589.0,0.964393]
[1725548753786,0.59595326,56590.0,56589.0,1.317818]
[1725548754381,0.59595326,56590.0,56589.0,1.341818]
[1725548754537,0.59595326,56590.0,56589.0,1.349187]
[1725548754808,0.59595326,56590.0,56589.0,1.97812296]
[1725548755067,0.59595326,56590.0,56589.0,1.98912296]
[1725548755569,0.59595326,56590.0,56589.0,2.34254796]
[1725548755788,0.59595326,56590.0,56589.0,2.00240756]
[1725548756033,0.59595326,56590.0,56589.0,2.35583256]
[1725548756277,0.31404326,56590.0,56589.0,2.70925756]
[1725548756514,0.26947267,56590.0,56589.0,2.35583256]
[1725548756700,0.25384326,56590.0,56589.0,2.35582748]
[1725548757719,0.25384326,56590.0,56589.0,2.00240248]
[1725548758003,0.25384326,56590.0,56589.0,2.35582748]
[1725548758982,0.12619049,56590.0,56589.0,2.69771395]
[1725548759499,0.41779049,56590.0,56589.0,1.97840248]
[1725548759755,0.41779049,56590.0,56589.0,1.97940248]
[1725548760007,0.41779049,56590.0,56589.0,1.96612296]
[1725548760761,0.41779049,56590.0,56589.0,1.95612296]
[1725548761025,0.41779049,56590.0,56589.0,1.94675396]
[1725548761307,0.41779049,56590.0,56589.0,1.96612296]
[1725548761554,0.24108049,56590.0,56589.0,2.31954796]
[1725548761830,0.24108049,56590.0,56589.0,2.33283004]
[1725548762051,0.000816,56595.0,56589.0,2.33283004]
[1725548762052,0.000816,56595.0,56594.0,0.206066]
[1725548762311,0.000816,56595.0,56594.0,1.87199095]
[1725548762562,0.000816,56595.0,56594.0,2.92066542]
[1725548762793,0.00013,56598.0,56597.0,1.266181]
[1725548763052,0.00013,56598.0,56597.0,1.93134713]
[1725548763290,0.00013,56598.0,56597.0,2.28472213]
[1725548763559,0.00013,56598.0,56597.0,2.27144196]
[1725548763793,0.00013,56598.0,56597.0,1.355181]
[1725548764304,0.00013,56598.0,56595.0,0.176691]
[1725548764548,0.00013,56598.0,56597.0,0.530062]
[1725548764824,0.00013,56598.0,56594.0,0.353391]
[1725548765126,0.00013,56598.0,56597.0,0.540062]
[1725548765364,0.1978,56622.0,56618.0,0.176622]
[1725548765599,0.00082,56623.0,56618.0,1.42539645]
[1725548765825,0.00082,56623.0,56618.0,1.246354]
[1725548766117,0.00082,56623.0,56618.0,1.77510896]
[1725548766340,0.00082,56623.0,56622.0,0.912416]
[1725548766575,0.00082,56623.0,56622.0,1.46414596]
[1725548766813,0.00082,56623.0,56622.0,1.96988263]
[1725548767069,0.00082,56623.0,56622.0,2.27058396]
[1725548767305,0.00082,56623.0,56622.0,1.91736496]
[1725548767525,0.00082,56623.0,56622.0,1.99616168]
[1725548768029,0.00082,56623.0,56622.0,2.21436496]
[1725548768265,0.00082,56631.0,56629.0,1.95954247]
[1725548768530,0.00082,56631.0,56629.0,2.68998841]
[1725548768759,0.00082,56631.0,56629.0,2.33681341]
[1725548769531,0.00082,56631.0,56629.0,2.25805343]
[1725548769788,1e-06,56631.0,56630.0,1.909629]
[1725548770054,1e-06,56631.0,56630.0,2.39813996]
[1725548770301,2e-07,56634.0,56633.0,1.556394]
[1725548770539,2e-07,56634.0,56633.0,2.65486595]
[1725548771008,2e-07,56634.0,56633.0,2.90309143]
[1725548771685,2e-07,56634.0,56633.0,3.034079]
[1725548771930,2e-07,56634.0,56633.0,2.91635861]
[1725548772355,2e-07,56643.0,56642.0,2.31227247]
[1725548772576,2e-07,56643.0,56642.0,3.24627743]
[1725548772801,2e-07,56647.0,56646.0,1.617179]
[1725548773042,2e-07,56647.0,56646.0,2.99239262]
[1725548773330,0.00013,56675.0,56674.0,0.176447]
[1725548773563,0.00013,56675.0,56674.0,1.3486597]
[1725548773777,0.00013,56675.0,56674.0,1.87353796]
[1725548774053,0.00013,56675.0,56674.0,1.335132]
[1725548774270,0.00013,56675.0,56659.0,0.008369]
[1725548774505,0.00013,56675.0,56673.0,0.01]
[1725548774724,0.00013,56675.0,56674.0,0.892237]
[1725548774957,0.00013,56675.0,56674.0,1.698027]
[1725548775194,0.00013,56675.0,56674.0,1.87353796]
[1725548775412,0.00013,56675.0,56674.0,1.706396]
[1725548775630,0.00013,56675.0,56674.0,2.26780196]
[1725548775851,0.0119302,56691.0,56690.0,1.234782]
[1725548776065,0.0119302,56691.0,56690.0,0.629192]
[1725548776290,0.0119302,56691.0,56690.0,1.004987]
[1725548776530,0.3115302,56691.0,56690.0,0.276397]
[1725548776745,0.1898,56690.0,56685.0,0.352822]
[1725548776960,0.1898,56690.0,56685.0,0.176412]
[1725548777220,0.002,56687.0,56679.0,0.352858]
[1725548777449,0.07729785,56780.0,56717.0,0.1852]
[1725548777679,0.0002679,56786.0,56784.0,0.352211]
[1725548777902,0.0002679,56786.0,56758.0,0.02]
[1725548777903,0.352218,56783.0,56758.0,0.02]
[1725548778138,0.352218,56783.0,56736.0,0.1852]
[1725548778139,0.2976,56767.0,56748.0,0.01]
[1725548778389,0.002,56768.0,56725.0,0.1852]
[1725548778390,0.34188647,56749.0,56741.0,0.01]
[1725548778610,0.34188647,56749.0,56715.0,0.01]
[1725548778611,0.2988,56748.0,56728.0,0.01]
[1725548778820,0.2767,56741.0,56731.0,0.005]
[1725548779040,0.2767,56741.0,56698.0,0.2967]
[1725548779041,0.2767,56716.0,56715.0,0.005]
[1725548779986,0.17632,56715.0,56714.0,0.005]
[1725548780192,0.1147,56716.0,56714.0,0.005]
[1725548780421,0.1,56732.0,56731.0,0.005]
[1725548780422,0.1985,56732.0,56731.0,0.005]
[1725548780630,0.352627,56717.0,56714.0,0.005]
[1725548780857,0.1985,56714.0,56709.0,0.005]
[1725548781070,0.1985,56714.0,56704.0,0.005]
[1725548781071,0.529053,56705.0,56704.0,0.005]
[1725548781292,0.1985,56714.0,56707.0,0.005]
[1725548781507,0.1997,56714.0,56710.0,0.005]
[1725548781731,0.1947,56714.0,56710.0,0.005]
[1725548781988,0.176329,56713.0,56710.0,0.005]
[1725548782226,0.34188647,56723.0,56710.0,0.005]
[1725548782227,0.34188647,56723.0,56722.0,0.005]
[1725548782444,0.002,56755.0,56725.0,0.005]
[1725548782445,0.352553,56730.0,56725.0,0.005]
[1725548782695,0.34188647,56733.0,56725.0,0.005]
[1725548782696,0.0012,56729.0,56725.0,0.005]
[1725548782930,0.176286,56726.0,56725.0,0.005]
[1725548783160,0.176286,56726.0,56725.0,0.0047321]
[1725548783161,0.301,56726.0,56725.0,0.0047321]
[1725548784058,0.2802,56740.0,56725.0,0.0047321]
[1725548784280,0.2802,56740.0,56734.0,0.0047321]
[1725548784714,0.1949,56739.0,56736.0,0.0047321]
[1725548784932,0.1949,56739.0,56714.0,0.11]
[1725548784933,0.1949,56739.0,56738.0,0.0047321]
[1725548785145,0.4706,56749.0,56748.0,0.0047321]
[1725548785601,0.999243,56749.0,56748.0,0.0047321]
[1725548785824,0.999243,56749.0,56722.0,0.01]
[1725548785825,0.4706,56749.0,56741.0,0.0047321]
[1725548786114,0.176236,56742.0,56741.0,0.0047321]
[1725548786351,0.81248647,56749.0,56741.0,0.0047321]
[1725548786584,0.81248647,56749.0,56746.0,0.0047321]
[1725548787059,0.81248647,56749.0,56748.0,0.0047321]
[1725548787499,0.4706,56749.0,56748.0,0.0047321]
[1725548787717,0.34188647,56757.0,56752.0,0.0047321]
[1725548787718,0.82598647,56757.0,56752.0,0.0047321]
[1725548787940,0.82598647,56757.0,56737.0,0.352501]
[1725548787941,0.82598647,56757.0,56756.0,0.0047321]
[1725548788162,1.35455447,56757.0,56756.0,0.0047321]
[1725548788410,0.82598647,56757.0,56756.0,0.0047321]
[1725548788630,0.82598647,56757.0,56738.0,0.1]
[1725548788631,0.880962,56756.0,56755.0,0.0047321]
[1725548788854,0.83791353,56757.0,56756.0,0.0047321]
[1725548789083,0.83791353,56757.0,56740.0,0.1]
[1725548789084,0.352419,56751.0,56746.0,0.0047321]
[1725548789298,0.34188647,56749.0,56742.0,0.0047321]
[1725548789550,0.176217,56748.0,56747.0,0.0047321]
[1725548789764,0.54057906,56748.0,56747.0,0.0047321]
[1725548789995,0.18814406,56748.0,56747.0,0.0047321]
[1725548790215,0.01192706,56748.0,56747.0,0.0047321]
[1725548790641,0.176209,56751.0,56748.0,0.0047321]
[1725548790860,0.528643,56749.0,56748.0,0.0047321]
[1725548791094,0.881072,56749.0,56748.0,0.0047321]
[1725548791321,0.176213,56750.0,56748.0,0.0047321]
[1725548791537,0.4841,56757.0,56734.0,0.705041]
[1725548791538,0.4841,56757.0,56756.0,0.0047321]
[1725548791755,0.660289,56757.0,56756.0,0.0047321]
[1725548791985,0.4841,56757.0,56756.0,0.0047321]